Cogmind - Beta 13 *** ADVENTURER MODE // 2024.05.21 @ 11:10:53 Player: Blade Result: Self-destructed Performance ------------- Evolutions (5) 2500 Regions Visited (9) 1800 Robots Destroyed (10) 50 Value Destroyed (152) 152 Prototype IDs (3) 60 Alien Tech Used (0) 0 Bonus (0) 0 TOTAL SCORE: 4562 Bonus ------- None Cogmind --------- Core Integrity 824/1000 Matter 32/300 Energy 100/100 System Corruption 0% Temperature Cool (0) Movement Core (150) Ox2 Location -5/Factory Parts ------- > --- POWER (2) -------- (None) > --- PROPULSION (6) --- (None) > --- UTILITY (7) ------ Small Storage Unit Advanced Signal Interpreter Advanced ECM Suite (fused) > --- WEAPON (2) ------- (None) > --- INVENTORY (8) ---- Improved Flight Unit Xenon Bombardment Thruster Hacking Suite Disruptor Cannon Proton Missile Launcher Peak State ------------ > --- POWER ------------ Light Fission Core > --- PROPULSION ------- Cesium-ion Thruster Cesium-ion Thruster Cesium-ion Thruster Xenon Bombardment Thruster Nuclear Pulse Thruster Nuclear Pulse Thruster > --- UTILITY ---------- Small Storage Unit Sensor Array Advanced Signal Interpreter Advanced ECM Suite Reaction Control System Propulsion Shielding > --- WEAPON ----------- (None) > --- INVENTORY -------- Light Fission Core Light Fission Core Improved Flight Unit Improved Flight Unit Improved Flight Unit Xenon Bombardment Thruster Hacking Suite Proton Missile Launcher [Rating: 46] Favorites ----------- Power Light Ion Engine Engine Light Ion Engine Power Core Light Fission Core Propulsion Cesium-ion Thruster Leg Aluminum Leg Flight Unit Cesium-ion Thruster Utility Small Storage Unit Device Sensor Array Storage Small Storage Unit Processor Advanced Signal Interpreter Protection Propulsion Shielding Weapon Assault Rifle Energy Gun Small Laser Ballistic Gun Assault Rifle Launcher Proton Missile Launcher Build | -11 -10 -10 -9 -8 -7 -6 -6 -6 -5 ------- Run | Yrd Mat Min Mat Mat Fac Fac Was Fac Fac Slots Evolved 10 | . . . 2 2 2 2 . . 2 Power 1 | . . . . . . . . . 1 Propulsion 4 | . . . 1 . 1 2 . . . Utility 5 | . . . 1 2 1 . . . 1 Weapon . | . . . . . . . . . . Parts Attached 38 | . 3 . 10 1 13 6 . 1 4 Power 10 | . . . 3 . 5 1 . . 1 Engine 8 | . . . 3 . 5 . . . . Core 2 | . . . . . . 1 . . 1 Reactor . | . . . . . . . . . . Propulsion 17 | . 3 . 3 . 3 4 . 1 3 Treads . | . . . . . . . . . . Leg . | . . . . . . . . . . Wheel . | . . . . . . . . . . Hover . | . . . . . . . . . . Flight 17 | . 3 . 3 . 3 4 . 1 3 Utility 5 | . . . 2 1 1 1 . . . Device 3 | . . . 1 1 1 . . . . Storage . | . . . . . . . . . . Processor 1 | . . . . . . 1 . . . Hackware . | . . . . . . . . . . Protection 1 | . . . 1 . . . . . . Artifact . | . . . . . . . . . . Weapon 6 | . . . 2 . 4 . . . . Energy Gun 2 | . . . . . 2 . . . . Energy Cannon . | . . . . . . . . . . Ballistic Gun 2 | . . . 2 . . . . . . Ballistic Cannon . | . . . . . . . . . . Launcher 2 | . . . . . 2 . . . . Special Weapon . | . . . . . . . . . . Impact Weapon . | . . . . . . . . . . Slashing Weapon . | . . . . . . . . . . Piercing Weapon . | . . . . . . . . . . Special Melee Weapon . | . . . . . . . . . . Unidentified Prototypes 3 | . 1 . . . 2 . . . . Parts Lost 12 | . . . . . . . . 8 4 Power 1 | . . . . . . . . . 1 Propulsion 8 | . . . . . . . . 5 3 Utility 3 | . . . . . . . . 3 . Weapon . | . . . . . . . . . . Highest Loss Streak 7 | . . . . . . . . 7 4 To Critical Strikes . | . . . . . . . . . . Average Slot Usage (%) 74 | . 71 71 89 86 77 78 86 81 35 Engine 7 | . 14 14 11 9 7 5 . . . Core 1 | . . . . . . . 6 5 4 Flight 29 | . 26 28 33 27 30 34 40 36 12 Device 11 | . . . 5 14 22 20 20 18 5 Storage 9 | . 14 14 11 9 7 6 6 6 5 Processor 1 | . . . . . . 3 6 6 5 Protection 4 | . . . 9 9 7 6 6 5 . Ballistic Gun 6 | . 14 14 18 18 1 . . . . Naked Turns . | . . . . . . . . . . Heaviest Build 27 | 11 11 10 14 15 27 20 18 18 15 Greatest Support 33 | 20 20 10 15 15 22 33 32 33 15 Greatest Overweight (x) 2 | . 2 . . . 1 . . 2 2 Average Overweight (x) . | . . . . . . . . . . Largest Inventory Capacity 8 | 8 8 8 8 8 8 8 8 8 8 Average Capacity 8 | 8 8 8 8 8 8 8 8 8 8 Most Carried 8 | 6 6 8 8 8 8 8 8 8 7 Average Carried 6 | 6 4 6 7 8 7 7 8 7 4 Final Capacity 8 | 8 8 8 8 8 8 8 8 8 8 Final Carried 8 | 6 5 8 8 8 8 8 8 8 5 Class Distribution -------------------- 65% | Sprinter 34% | Mutant Dominant Class ---------------- Mutant | -10/Materials Mutant | -10/Mines Sprinter | -9/Materials Sprinter | -8/Materials Sprinter | -7/Factory Sprinter | -6/Factory Sprinter | -6/Waste Sprinter | -6/Factory Sprinter | -5/Factory Resources | -11 -10 -10 -9 -8 -7 -6 -6 -6 -5 ----------- Run | Yrd Mat Min Mat Mat Fac Fac Was Fac Fac Matter Collected 298 | 200 39 18 11 . 30 . . . . Remotely . | . . . . . . . . . . Salvage Created 196 | . . 33 43 . 120 . . . . Parts 25 | . . 7 9 . 9 . . . . Haulers Intercepted . | . . . . . . . . . . Recyclers Shooed 1 | . . . . . 1 . . . . Parts Field Recycled . | . . . . . . . . . . Retrieved Matter . | . . . . . . . . . . Parts Self-Destructed . | . . . . . . . . . . Prevented . | . . . . . . . . . . Kills | -11 -10 -10 -9 -8 -7 -6 -6 -6 -5 ------- Run | Yrd Mat Min Mat Mat Fac Fac Was Fac Fac Combat Hostiles Destroyed 9 | . . 3 3 . 3 . . . . Guns 6 | . . 3 3 . . . . . . AOE 2 | . . . . . 2 . . . . Classes Destroyed 2 | . . 1 . . 1 . . . . Worker 1 | . . . . . 1 . . . . Swarmer 9 | . . 3 3 . 3 . . . . Best Kill Streak 4 | . . 3 3 . 4 . . . . Combat Bots Only 3 | . . 3 3 . 2 . . . . Max Kills in Single Turn 1 | . . 1 1 . 1 . . . . Gunslinging . | . . . . . . . . . . Exploded 1 | . . . . . 1 . . . . Melee . | . . . . . . . . . . Uniques/NPCs Destroyed . | . . . . . . . . . . Combat | -11 -10 -10 -9 -8 -7 -6 -6 -6 -5 -------- Run | Yrd Mat Min Mat Mat Fac Fac Was Fac Fac Hostile Shots Fired 175 | . . 20 19 33 15 . . 68 20 Missed 73 | . . 8 6 21 8 . . 27 3 Damage Taken 1303 | . . 91 94 108 81 . . 566 363 Core 571 | . . 39 17 6 11 . . 322 176 Absorbed by Shields . | . . . . . . . . . . Redirected to Shielding 53 | . . . 2 4 8 . . 39 . Ignored by Resistances 362 | . . 28 29 33 23 . . 163 86 Core Remaining (%) 89 | 100 . 84 95 98 98 . . 62 . Volleys Fired 21 | . 3 6 6 . 6 . . . . Largest 2 | . 1 1 2 . 1 . . . . Hottest 40 | . 20 20 40 . 39 . . . . Shots Fired 27 | . 3 6 12 . 6 . . . . Gun 21 | . 3 6 12 . . . . . . Cannon . | . . . . . . . . . . Launcher 6 | . . . . . 6 . . . . Special . | . . . . . . . . . . Kinetic 21 | . 3 6 12 . . . . . . Thermal . | . . . . . . . . . . Explosive . | . . . . . . . . . . Electromagnetic 6 | . . . . . 6 . . . . Robot Hit Streak 6 | . 2 5 6 . 4 . . . . Robot Miss Streak 1 | . 1 1 1 . 1 . . . . Penetration Max . | . . . . . . . . . . Secondary Targets . | . . . . . . . . . . Shots Hit Robots 19 | . 2 5 8 . 4 . . . . Core Hits 10 | . . 3 3 . 4 . . . . Critical Kills . | . . . . . . . . . . Critical Parts Destroyed . | . . . . . . . . . . Critical Strikes . | . . . . . . . . . . Melee Attacks . | . . . . . . . . . . Impact . | . . . . . . . . . . Slashing . | . . . . . . . . . . Piercing . | . . . . . . . . . . Sneak Attacks . | . . . . . . . . . . Combat Hostiles . | . . . . . . . . . . Follow-up Attacks . | . . . . . . . . . . Damage Inflicted 451 | . 21 63 101 . 260 . . . 6 Guns 185 | . 21 63 101 . . . . . . Cannons . | . . . . . . . . . . Explosions 260 | . . . . . 260 . . . . Melee . | . . . . . . . . . . Ramming 6 | . . . . . . . . . 6 Kinetic 185 | . 21 63 101 . . . . . . Thermal . | . . . . . . . . . . Explosive . | . . . . . . . . . . Electromagnetic 260 | . . . . . 260 . . . . Impact . | . . . . . . . . . . Slashing . | . . . . . . . . . . Piercing . | . . . . . . . . . . Highest Corruption 6 | . . . . . 1 . 6 6 . Average Corruption 3 | . . . . . 1 . 6 6 . Corruption Purged . | . . . . . . . . . . Corruption Blocked . | . . . . . . . . . . Effects 9 | . . . . . 1 . 1 7 . Message Errors 2 | . . . . . . . . 2 . Matter Fused 1 | . . . . . 1 . . . . Heat Flow Errors 2 | . . . . . . . . 2 . Energy Discharges 1 | . . . . . . . . 1 . Parts Fused 1 | . . . . . . . 1 . . Data Loss (minor) 1 | . . . . . . . . 1 . Data Loss (major) 1 | . . . . . . . . 1 . Overload Shots . | . . . . . . . . . . Overflow Damage 3 | . . . . . 3 . . . . Projectiles . | . . . . . . . . . . Explosions 3 | . . . . . 3 . . . . Melee . | . . . . . . . . . . Knockbacks . | . . . . . . . . . . Impact . | . . . . . . . . . . Kinetic . | . . . . . . . . . . Secondary . | . . . . . . . . . . Self-Inflicted Damage 9 | . . . . . 6 . . . 3 Shots 2 | . . . . . 2 . . . . Rammed 2 | . . . . . . . . . 2 Targets Rammed 2 | . . . . . . . . . 2 Kicked . | . . . . . . . . . . Crushed . | . . . . . . . . . . Highest Temperature 310 | . . . 10 . . 278 138 310 . Average Temperature 111 | . . . 10 . . 113 56 122 . Received Heat Transfer 210 | . . 30 36 45 . . . 27 72 Effects 4 | . . . . . . . . 4 . Energy Bleed 2 | . . . . . . . . 2 . Interference 2 | . . . . . . . . 2 . Siege Activations . | . . . . . . . . . . Robots Corrupted 1 | . . . . . 1 . . . . Combat Hostiles 1 | . . . . . 1 . . . . Parts Fried 1 | . . . . . 1 . . . . Impact Corruptions . | . . . . . . . . . . Robots Melted . | . . . . . . . . . . Combat Hostiles . | . . . . . . . . . . Parts Melted . | . . . . . . . . . . Heat Transferred . | . . . . . . . . . . Parts Sabotaged . | . . . . . . . . . . Parts Stolen . | . . . . . . . . . . Parts Stripped . | . . . . . . . . . . Power Chain Reactions . | . . . . . . . . . . Alert | -11 -10 -10 -9 -8 -7 -6 -6 -6 -5 ------- Run | Yrd Mat Min Mat Mat Fac Fac Was Fac Fac Peak Influence 212 | . 30 169 170 196 212 176 81 151 90 Initial 89 | . . 9 55 61 76 89 51 49 40 Average 90 | . 13 89 117 108 131 127 58 107 63 Maximum Alert Level 1 | . . . . . 1 . . . . Low Security (%) 97 | 100 100 100 100 100 86 100 100 100 100 Level 1 2 | . . . . . 13 . . . . Level 2 . | . . . . . . . . . . Level 3 . | . . . . . . . . . . Level 4 . | . . . . . . . . . . Level 5 . | . . . . . . . . . . High Security . | . . . . . . . . . . Max Security . | . . . . . . . . . . Squads Dispatched 11 | . . . 2 3 . . . 4 2 Investigation 5 | . . . 2 2 . . . 1 . Extermination . | . . . . . . . . . . Reinforcement 6 | . . . . 1 . . . 3 2 Assault . | . . . . . . . . . . Garrison . | . . . . . . . . . . Intercept . | . . . . . . . . . . Searches Triggered . | . . . . . . . . . . Construction Impeded 1 | . . . . . . . . . 1 Haulers Reinforced . | . . . . . . . . . . Active Scanning Responses . | . . . . . . . . . . Cargo Convoy Interrupts . | . . . . . . . . . . Stealth | -11 -10 -10 -9 -8 -7 -6 -6 -6 -5 --------- Run | Yrd Mat Min Mat Mat Fac Fac Was Fac Fac Distress Signals . | . . . . . . . . . . Communications Jammed . | . . . . . . . . . . Distress Signals . | . . . . . . . . . . Times Spotted 88 | . 4 9 10 21 8 3 6 23 4 Peak Tracking Total 21 | . 3 5 7 21 4 1 6 16 2 Tactical Retreats 8 | . . 2 . 2 1 . . 2 1 Traps | -11 -10 -10 -9 -8 -7 -6 -6 -6 -5 ------- Run | Yrd Mat Min Mat Mat Fac Fac Was Fac Fac Traps Triggered 5 | . . . 1 . 1 3 . . . Indirectly . | . . . . . . . . . . Trap Hack Attempts . | . . . . . . . . . . Triggered . | . . . . . . . . . . Disarmed . | . . . . . . . . . . Reprogrammed . | . . . . . . . . . . Reused . | . . . . . . . . . . Traps Extracted . | . . . . . . . . . . Installed . | . . . . . . . . . . Triggered . | . . . . . . . . . . Machines | -11 -10 -10 -9 -8 -7 -6 -6 -6 -5 ---------- Run | Yrd Mat Min Mat Mat Fac Fac Was Fac Fac Machines Disabled 1 | . . . . . 1 . . . . Max in Single Turn 1 | . . . . . 1 . . . . Garrison Access 2 | . . . . . 1 1 . . . Machines Repaired . | . . . . . . . . . . Machines Dismantled . | . . . . . . . . . . Machines Sabotaged . | . . . . . . . . . . Overloaded Fab Kills . | . . . . . . . . . . Hacking | -11 -10 -10 -9 -8 -7 -6 -6 -6 -5 --------- Run | Yrd Mat Min Mat Mat Fac Fac Was Fac Fac Machines Accessed 21 | . 1 1 2 5 2 6 . 4 . Terminals 11 | . 1 . 1 5 . 3 . 1 . Fabricators 3 | . . . . . 1 . . 2 . Repair Stations . | . . . . . . . . . . Recycling Units 3 | . . . . . . 2 . 1 . Scanalyzers 1 | . . . 1 . . . . . . Garrison Access 2 | . . . . . 1 1 . . . Total Hacks 46 | . 2 1 5 13 3 11 . 11 . Successful 21 | . . 1 2 1 2 9 . 6 . Failed 25 | . 2 . 3 12 1 2 . 5 . Catastrophic 9 | . . . 2 6 . 1 . . . Database Lockouts . | . . . . . . . . . . Manual 25 | . 2 . 3 13 . 4 . 3 . Terminals 25 | . 2 . 3 13 . 4 . 3 . Fabricators 5 | . . . . . 1 . . 4 . Repair Stations . | . . . . . . . . . . Recycling Units 10 | . . . . . . 6 . 4 . Scanalyzers 2 | . . . 2 . . . . . . Garrison Access 3 | . . . . . 2 1 . . . Terminal Hacks 3 | . . 1 . . . 2 . . . Open Door 1 | . . 1 . . . . . . . Terminal Index 1 | . . . . . . 1 . . . Recycling Unit Index 1 | . . . . . . 1 . . . Fabricator Hacks 3 | . . . . . 1 . . 2 . Load Schematic 1 | . . . . . . . . 1 . Build 2 | . . . . . 1 . . 1 . Repair Station Hacks . | . . . . . . . . . . Recycling Unit Hacks 9 | . . . . . . 6 . 3 . Process 3 | . . . . . . 2 . 1 . Retrieve Matter 6 | . . . . . . 4 . 2 . Scanalyzer 2 | . . . 2 . . . . . . Insert Component 1 | . . . 1 . . . . . . Analyze 1 | . . . 1 . . . . . . Garrison Access Hacks 2 | . . . . . 1 1 . . . Seal Access 2 | . . . . . 1 1 . . . Unauthorized Hacks 2 | . . . . 1 . . . 1 . Terminals 2 | . . . . 1 . . . 1 . Assimilate 2 | . . . . 1 . . . 1 . Fabricators . | . . . . . . . . . . Repair Stations . | . . . . . . . . . . Recycling Units . | . . . . . . . . . . Scanalyzers . | . . . . . . . . . . Garrison Access . | . . . . . . . . . . Data Cores Recovered . | . . . . . . . . . . Used . | . . . . . . . . . . Hacking Detections 17 | . 1 . 2 5 1 4 . 4 . Full Trace Events 5 | . 1 . 1 2 . . . 1 . Feedback Events . | . . . . . . . . . . Feedback Blocked . | . . . . . . . . . . Robot Schematics Acquired . | . . . . . . . . . . Robots Built 1 | . . . . . 1 . . . . Authchips . | . . . . . . . . . . Time 40 | . . . . . 40 . . . . Total Robot Build Rating 1 | . . . . . 1 . . . . Part Schematics Acquired 1 | . . . 1 . . . . . . Parts Built 2 | . . . . . . . . 2 . Authchips . | . . . . . . . . . . Time 73 | . . . . . . . . 73 . Total Part Build Rating 6 | . . . . . . . . 6 . Parts Repaired . | . . . . . . . . . . Time . | . . . . . . . . . . Parts Recycled . | . . . . . . . . . . Recycled Matter 45 | . . . . . . 38 . 7 . Retrieved Matter 45 | . . . . . . 38 . 7 . Retrieved Components . | . . . . . . . . . . Parts Scanalyzed 1 | . . . 1 . . . . . . Part Schematics Acquired 1 | . . . 1 . . . . . . Parts Damaged . | . . . . . . . . . . Bothacking | -11 -10 -10 -9 -8 -7 -6 -6 -6 -5 ------------ Run | Yrd Mat Min Mat Mat Fac Fac Was Fac Fac Used RIF Installer . | . . . . . . . . . . Robots Hacked . | . . . . . . . . . . Non-combat . | . . . . . . . . . . Combat . | . . . . . . . . . . Robot Hacks Applied . | . . . . . . . . . . Relay Couplers Released . | . . . . . . . . . . Fabnet Peak Effective % . | . . . . . . . . . . Robots Rewired . | . . . . . . . . . . Allies Hacked . | . . . . . . . . . . Hacks Repelled . | . . . . . . . . . . Allies | -11 -10 -10 -9 -8 -7 -6 -6 -6 -5 -------- Run | Yrd Mat Min Mat Mat Fac Fac Was Fac Fac Total Allies 2 | . . . . . 1 . . 1 . Largest Group 1 | . . . . . 1 . . 1 . Highest-Rated Group 26 | . . . . . 6 . . 26 . Highest-Rated Ally 26 | . . . . . 6 . . 26 . Total Orders 1 | . . . . . 1 . . . . ROAM 1 | . . . . . 1 . . . . Ally Attacks . | . . . . . . . . . . Total Damage . | . . . . . . . . . . Kills . | . . . . . . . . . . Allies Corrupted . | . . . . . . . . . . Allies Melted . | . . . . . . . . . . Intel | -11 -10 -10 -9 -8 -7 -6 -6 -6 -5 ------- Run | Yrd Mat Min Mat Mat Fac Fac Was Fac Fac Robot Analysis Total . | . . . . . . . . . . Derelict Logs Recovered 1 | . . 1 . . . . . . . Drone Launches . | . . . . . . . . . . Drone Recoveries . | . . . . . . . . . . Exploration | -11 -10 -10 -9 -8 -7 -6 -6 -6 -5 ------------- Run | Yrd Mat Min Mat Mat Fac Fac Was Fac Fac Turns Passed 1720 | 2 369 205 101 85 280 342 34 202 100 Spaces Moved 3844 | 2 244 506 195 278 654 1103 138 512 212 Core 8 | . . . . . . . . 1 7 Treads . | . . . . . . . . . . Legs 14 | 2 12 . . . . . . . . Wheels . | . . . . . . . . . . Hover . | . . . . . . . . . . Flight 3822 | . 232 506 195 278 654 1103 138 511 205 Fastest Speed 21 | 120 37 37 29 29 26 21 21 21 29 Average Speed 28 | 120 41 37 29 29 26 24 21 24 41 Slowest Speed 195 | 120 180 37 37 29 106 25 21 150 195 Overloaded Moves . | . . . . . . . . . . Propulsion Burnouts . | . . . . . . . . . . Robots Hopped 46 | . 3 9 6 5 6 5 . 8 4 Cave-ins Triggered . | . . . . . . . . . . Exploration Rate (%) 29 | 1 25 79 18 28 20 22 77 16 6 Regions Visited 9 Branch Regions 1 Pre-discovered Areas . | . . . . . . . . . . Known Exits Taken 1 | . . . . . . . . 1 . Unknown Exits Taken 6 | 1 1 1 1 1 1 . . . . Scrap Searched . | . . . . . . . . . . Spaces Dug . | . . . . . . . . . . Terrain Destroyed . | . . . . . . . . . . Melee . | . . . . . . . . . . Projectile . | . . . . . . . . . . AOE . | . . . . . . . . . . Terrain Rammed . | . . . . . . . . . . Walls Destroyed . | . . . . . . . . . . Machines Disabled . | . . . . . . . . . . Actions | -11 -10 -10 -9 -8 -7 -6 -6 -6 -5 --------- Run | Yrd Mat Min Mat Mat Fac Fac Was Fac Fac Total 4380 | 1 506 508 221 276 747 1174 142 586 219 Wait 448 | . 249 1 7 3 60 48 5 71 4 Move 3747 | 1 237 488 183 267 640 1093 137 497 204 Hop 42 | . 3 8 5 5 6 5 . 6 4 Pick Up 27 | . 3 4 4 . 6 4 . 5 1 Fast Attach 16 | . 3 . 4 1 5 3 . . . Attach 12 | . . . 3 . 3 2 . . 4 Detach 4 | . . . 1 . 2 1 . . . Swap 10 | . . . 3 . 5 1 . 1 . Drop 37 | . 8 1 5 . 13 4 . 6 . Fire 21 | . 3 6 6 . 6 . . . . Melee . | . . . . . . . . . . Ram 2 | . . . . . . . . . 2 Kick . | . . . . . . . . . . Crush . | . . . . . . . . . . Escape Stasis 14 | . . . . . 1 13 . . . Rewire . | . . . . . . . . . . Trap . | . . . . . . . . . . Miscellaneous . | . . . . . . . . . . Route ------- -11/Scrapyard -10/Materials -10/Mines -9/Materials (discovered 2 exits: *Mat / Sto) -8/Materials -7/Factory -6/Factory -6/Waste -6/Factory -5/Factory History --------- Turn | Location | Event 1 | -11/Scrapyard | Discovered new exit (range 1) 3 | -11/Scrapyard | Entered Materials 300 | -10/Materials | Build established: Mutant 369 | -10/Materials | Discovered new exit (range 7) 372 | -10/Materials | Entered Mines 465 | -10/Mines | Discovered new exit (range 4) 491 | -10/Mines | Met a Derelict who couldn't figure out how to use a Trap Extractor 512 | -10/Mines | Joined a pair of Derelicts in attacking an 0b10 outpost 515 | -10/Mines | Learned location of 1 exit from Materials 577 | -10/Mines | Entered Materials 577 | -9/Materials | Evolved 2 slots: Propulsion x1, Utility x1 578 | -9/Materials | Identified exit to Storage 673 | -9/Materials | Discovered new exit (range 13) 678 | -9/Materials | Entered another Materials area 678 | -8/Materials | Evolved 2 slots: Utility x2 759 | -8/Materials | Discovered new exit (range 16) 763 | -8/Materials | Entered Factory 763 | -7/Factory | Evolved 2 slots: Propulsion x1, Utility x1 874 | -7/Factory | Build established: Sprinter 881 | -7/Factory | Fabricated K-01 Serf (x1) 1040 | -7/Factory | Discovered new exit (range 8) 1043 | -7/Factory | Entered another Factory area 1043 | -6/Factory | Evolved 2 slots: Propulsion x2 1173 | -6/Factory | Discovered new exit (range 4) 1189 | -6/Factory | Identified exit to Factory 1385 | -6/Factory | Sucked down chute 1385 | -6/Factory | Entered Waste 1400 | -6/Waste | EMP discharged 1404 | -6/Waste | Spotted C-40 Crusher 1404 | -6/Waste | Spotted C-40 Crusher 1406 | -6/Waste | Spotted C-40 Crusher 1407 | -6/Waste | Spotted C-40 Crusher 1408 | -6/Waste | Spotted C-40 Crusher 1413 | -6/Waste | Spotted C-40 Crusher 1415 | -6/Waste | Discovered new exit (range 16) 1419 | -6/Waste | Identified exit to Factory 1419 | -6/Waste | Entered Factory 1563 | -6/Factory | Fabricated Cesium-ion Thruster (x2) 1606 | -6/Factory | Discovered exit to Factory (range 15) 1621 | -6/Factory | Entered another Factory area 1621 | -5/Factory | Evolved 2 slots: Power x1, Utility x1 1651 | -5/Factory | Lost 7 parts (4n3u) 1721 | -5/Factory | Self-destructed Last Messages --------------- 01685_ Penetrated by Slug. 01685_ Subcomponent Replicator disabled. 01688_ Penetrated by Slug. 01690_ ALERT: Hostiles spotted, dispatching reinforcements to Terminal F011. 01691_ Penetrated by Slug. 01692_ Slammed into U-05 Engineer. 01692_ Destabilizing: Core damaged (-50). 01692_ ALERT: Construction progress impeded, dispatching reinforcements to local area. 01693_ Cesium-ion Thruster destroyed. 01693_ Penetrated by Slug. 01694_ Slammed into Y-64 Sentinel. 01696_ Slug penetrates Wall. 01699_ U-05 Engineer builds a Door. 01702_ Penetrated by Slug. 01705_ Lgt. Fission Core destroyed. 01707_ Penetrated by Slug. 01710_ Cesium-ion Thruster destroyed. 01721_ Connecting with Terminal... Map ----- +----------------------------------------------------+ | ?????????????????????????????????????????????????? | | ?????????????????????????????????????????????????? | | ?????????????????????????????????????????????????? | | ?????????????????????????????????????????????????? | | ?????????????????????????????????????????????????? | | ?????????????????????????????????????????????????? | | ?????????????????????????????????????????????????? | | ?????????????????????????????????????????????????? | | ?????????????????????????????????????????????????? | | ?????????????????????????????????????????????????? | | ?????????????????????????????????????????????????? | | ?????????????????????????????????????????????????? | | ?????????????????????????????????????????????????? | | ?????????????????????????????????????????????????? | | ?????????????????????????????????????????????????? | | ?????????????????????????????????????????????????? | | ?????????????????????????????????????????????????? | | ?????????????????????????????????????????????????? | | ?????????????????????????????????????????????????? | | ??????????????#######????????????????????????????? | | ??????????????# [ #????????????????????????????? | | ?????? ??????# #????????????????????????????? | | ?????? ?????? """ ########?????????????????????? | | ??????? ????? """ # #?????????????????????? | | ?????? ?????"""?# """ "#?????????????????????? | | ????"""""" ???? ?# """@T#?????????????????????? | | ????? ?###+### """ "#?????????????????????? | | ???""""""" ## # #?????????????????????? | | ?? ###+##### ??????????? | | ?? ??????????? | | ???####### ########### #????????????????? | | ?????????###+## #????????????????????????????? | | ??????????????### ###????????????????????????????? | | ????????????????# #??????????????????????????????? | | ????????????????# #??????????????????????????????? | | ????????????????# #??????????????????????????????? | | ????????????????# #??????????????????????????????? | | ????????????????# #??????????????????????????????? | | ????????????????# #??????????????????????????????? | | ??????????#######+######?????????????????????????? | | ??????????# #?????????????????????????? | | ??????????# #?????????????????????????? | | ??????????# !#?????????????????????????? | | ??????????# "" "" #?????????????????????????? | | ??????????# "" "" #?????????????????????????? | | ??????????# "" #?????????????????????????? | | ??????????# #?????????????????????????? | | ??????????# """"" #?????????????????????????? | | ??????????# """"" #?????????????????????????? | | ??????????# """ #?????????????????????????? | +----------------------------------------------------+ Best States ------------- Heat Dissipation 40 Energy Generation 18 Energy Capacity 160 Matter Stores 300 Matter Capacity 300 Sight Range 16 Robot Scan Range 14 Terrain Scan Density 10 ECM Strength 2 Resistance: KI 20 Resistance: TH 20 Resistance: EX 20 Resistance: EM 20 Resistance: I 20 Resistance: S 20 Resistance: P 20 Propulsion Shielding 33 Evasion (%) 73 Offensive Hacking 10 Item Schematics ----------------- Cesium-ion Thruster | -9/Materials | Scanalyzed Robot Schematics ------------------ None Fabricated ------------ K-01 Serf | x1 | -7/Factory | Preloaded Cesium-ion Thruster | x2 | -6/Factory Alien Tech Used ----------------- None Achievements -------------- None Challenges ------------ None Game ------ Seed AdvancedMasterFilter Manual? 0 Play Time 00:38:35 Cumulative 32.0 hours Start 2024.05.21 @ 10:23:03 End 2024.05.21 @ 11:10:53 Sessions 1 Manual Loads 0 Difficulty Adventurer Special Mode None Game No. 42 Rogue 0 Adventurer 37 Explorer 5 Win Type - Total 1 Types 1/0/0/0/0/0/0/0/0 Lore% 24 Gallery% 36 Achievement% 30 Wizard Run 0 Options --------- Layout 1 ASCII 0 Keyboard 0 Movement Arrows Keybinds 0 Fullscreen 2 Font 24/Terminus Map View 50x35 Zoom Use 0% Tactical HUD 1 Map Filters NONE Filters NONE Steam 1 RUN: d23aad00-ce71-41bd-9f7b-4d8a4d4c9c03